fUSD/lending_fUSD_20240109
["ID","MTS","AMOUNT","RATE_DAILY","PERIOD"]
[310967175,1704836029687,-500.0,0.00041917,30]
[310967176,1704836029698,-500.0,0.00041917,30]
[310967177,1704836029708,-585.83,0.00041917,30]
[310967178,1704836029717,-1010.24,0.00041917,30]
[310967179,1704836029727,-625.2,0.00041917,30]
[310967180,1704836029736,-500.0,0.00041917,30]
[310967181,1704836029746,-1823.52,0.00041917,30]
[310967182,1704836029756,-1503.9,0.00041917,30]
[310967183,1704836029767,-500.0,0.00041917,30]
[310967184,1704836029776,-975.74,0.00041917,30]
[310967185,1704836029785,-860.51,0.00041917,30]
[310967186,1704836029794,-693.44,0.00041917,30]
[310967187,1704836029804,-1252.33,0.00041917,30]
[310967188,1704836029813,-812.42,0.00041917,30]
[310967189,1704836029823,-500.0,0.00041917,30]
[310967190,1704836029832,-1661.63,0.00041917,30]
[310967191,1704836029841,-835.41,0.00041917,30]
[310967192,1704836029850,-929.16,0.00041917,30]
[310967193,1704836029860,-500.0,0.00041917,30]
[310967194,1704836029869,-996.89,0.00041917,4]
[310967195,1704836029878,-500.0,0.00041917,30]
[310967196,1704836029887,-500.0,0.00041917,30]
[310967197,1704836029896,-500.0,0.00041917,30]
[310967198,1704836029906,-1020.06,0.00041917,30]
[310967199,1704836029915,-500.0,0.00041917,30]
[310967200,1704836029924,-955.18,0.00041917,30]
[310967201,1704836029933,-3000.0,0.00041917,120]
[310967202,1704836029944,-1186.89,0.00041917,30]
[310967203,1704836029953,-500.0,0.00041917,2]
[310967204,1704836029962,-500.0,0.00041917,30]
[310967205,1704836029970,-636.74,0.00041917,30]
[310967206,1704836029979,-768.37,0.00041917,30]
[310967207,1704836029988,-623.64,0.00041917,30]
[310967208,1704836029998,-500.0,0.00041917,30]
[310967209,1704836030007,-1030.22,0.00041917,30]
[310967210,1704836030017,-848.66,0.00041917,30]
[310967211,1704836030027,-500.0,0.00041917,30]
[310967212,1704836030036,-1351.73,0.00041917,30]
[310967213,1704836030045,-555.34,0.00041917,30]
[310967214,1704836030055,-500.0,0.00041917,30]
[310967215,1704836030065,-1236.91,0.00041917,30]
[310967216,1704836030075,-551.84,0.00041917,30]
[310967217,1704836030085,-495.1753939,0.00041917,30]
[310967218,1704836030094,-500.0,0.00041917,30]
[310967219,1704836030105,-576.84,0.00041917,30]
[310967220,1704836030114,-1038.11,0.00041917,30]
[310967221,1704836030124,-611.91052554,0.00041917,30]
[310967222,1704836030133,-500.0,0.00041917,30]
[310967223,1704836030143,-500.0,0.00041917,30]
[310967224,1704836030152,-500.0,0.00041917,30]
[310967225,1704836030162,-1358.69,0.00041917,30]
[310967226,1704836030171,-1217.37,0.00041917,30]
[310967227,1704836030181,-500.0,0.00041917,30]
[310967228,1704836030192,-500.0,0.00041917,30]
[310967229,1704836030202,-1307.04,0.00041917,30]
[310967230,1704836030211,-2306.18,0.00041917,30]
[310967231,1704836030221,-500.0,0.00041917,30]
[310967232,1704836030230,-500.0,0.00041917,30]
[310967233,1704836030240,-1192.74,0.00041917,30]
[310967234,1704836030249,-500.0,0.00041917,30]
[310967235,1704836030259,-500.0,0.00041917,30]
[310967236,1704836030269,-500.0,0.00041917,30]
[310967237,1704836030279,-177.38716991,0.00041917,30]
[310967238,1704836030289,-611.23,0.00041917,30]
[310967239,1704836030299,-907.9,0.00041917,30]
[310967240,1704836030309,-996.68,0.00041917,30]
[310967241,1704836030319,-500.0,0.00041917,30]
[310967242,1704836030329,-500.0,0.00041917,30]
[310967243,1704836030338,-627.06,0.00041917,30]
[310967244,1704836030348,-500.0,0.00041917,30]
[310967245,1704836030358,-500.0,0.00041917,30]
[310967246,1704836030369,-500.0,0.00041917,30]
[310967247,1704836030379,-503.95,0.00041917,30]
[310967248,1704836030389,-500.0,0.00041917,30]
[310967249,1704836030399,-968.8,0.00041917,30]
[310967250,1704836030409,-1396.88,0.00041917,30]
[310967251,1704836030419,-635.82,0.00041917,30]
[310967252,1704836030429,-1404.61,0.00041917,30]
[310967253,1704836030439,-1231.44,0.00041917,30]
[310967254,1704836030451,-500.0,0.00041917,30]
[310967255,1704836030462,-554.78,0.00041917,30]
[310967256,1704836030471,-500.0,0.00041917,30]
[310967257,1704836030481,-1763.53,0.00041917,30]
[310967258,1704836030491,-500.0,0.00041917,30]
[310967259,1704836030501,-801.87,0.00041917,30]
[310967260,1704836030511,-500.0,0.00041917,30]
[310967261,1704836030520,-604.58,0.00041917,30]
[310967262,1704836030531,-1257.01,0.00041917,30]
[310967263,1704836030541,-567.26540362,0.00041917,30]
[310967264,1704836030551,-1231.81,0.00041917,30]
[310967265,1704836030561,-2010.91,0.00041917,30]
[310967266,1704836030571,-1440.75,0.00041917,30]
[310967267,1704836030580,-500.0,0.00041917,30]
[310967268,1704836030590,-896.14,0.00041917,30]
[310967269,1704836030600,-1418.35,0.00041917,30]
[310967270,1704836030609,-632.29,0.00041917,30]
[310967271,1704836030619,-808.1,0.00041917,30]
[310967272,1704836030628,-921.45,0.00041917,30]
[310967273,1704836030638,-500.0,0.00041917,30]
[310967274,1704836030648,-500.0,0.00041917,30]
[310967275,1704836030657,-1186.03,0.00041917,30]
[310967276,1704836030667,-1164.7,0.00041917,30]
[310967277,1704836030676,-640.28,0.00041917,30]
[310967278,1704836030686,-1105.56,0.00041917,30]
[310967279,1704836030701,-602.96,0.00041917,30]
[310967280,1704836030711,-943.57,0.00041917,30]
[310967281,1704836030721,-500.0,0.00041917,30]
[310967282,1704836030730,-771.07,0.00041917,30]
[310967283,1704836030739,-1027.4,0.00041917,30]
[310967284,1704836030748,-500.0,0.00041917,30]
[310967285,1704836030757,-500.0,0.00041917,30]
[310967286,1704836030766,-500.0,0.00041917,30]
[310967287,1704836030776,-1051.31,0.00041917,30]
[310967288,1704836030786,-916.0,0.00041917,30]
[310967289,1704836030795,-500.0,0.00041917,5]
[310967290,1704836030804,-1267.33,0.00041917,30]
[310967291,1704836030814,-538.74,0.00041917,7]
[310967292,1704836030823,-701.87,0.00041917,30]
[310967293,1704836030832,-1238.29,0.00041917,30]
[310967294,1704836030842,-759.13,0.00041917,30]
[310967295,1704836030852,-606.97,0.00041917,30]
[310967296,1704836030862,-500.0,0.00041917,30]
[310967297,1704836030872,-1550.35,0.00041917,30]
[310967298,1704836030882,-500.0,0.00041917,30]
[310967299,1704836030892,-639.29,0.00041917,30]
[310967300,1704836030901,-836.7,0.00041917,30]
[310967301,1704836030911,-667.99,0.00041917,30]
[310967302,1704836030920,-500.0,0.00041917,30]
[310967303,1704836030930,-896.55,0.00041917,30]
[310967304,1704836030941,-500.0,0.00041917,30]
[310967305,1704836030953,-1272.22,0.00041917,30]
[310967306,1704836030963,-548.7,0.00041917,30]
[310967307,1704836030972,-814.27,0.00041917,30]
[310967308,1704836030982,-689.54,0.00041917,30]
[310967309,1704836030991,-1819.38,0.00041917,30]
[310967310,1704836031001,-515.4,0.00041917,30]
[310967311,1704836031011,-2289.47,0.00041917,30]
[310967312,1704836031021,-1865.7,0.00041917,30]
[310967313,1704836031030,-500.0,0.00041917,30]
[310967314,1704836031040,-1130.6,0.00041917,30]
[310967315,1704836031049,-500.0,0.00041917,30]
[310967316,1704836031058,-1020.46,0.00041917,30]
[310967317,1704836031068,-808.92,0.00041917,30]
[310967318,1704836031076,-765.7,0.00041917,30]
[310967319,1704836031086,-500.0,0.00041917,30]
[310967320,1704836031095,-806.27,0.00041917,30]
[310967321,1704836031104,-1306.79,0.00041917,30]
[310967322,1704836031114,-500.0,0.00041917,30]
[310967323,1704836031124,-500.0,0.00041917,30]
[310967324,1704836031133,-694.96,0.00041917,30]
[310967325,1704836031143,-1503.44,0.00041917,30]
[310967326,1704836031153,-500.0,0.00041917,30]
[310967327,1704836031163,-805.81,0.00041917,30]
[310967328,1704836031173,-500.0,0.00041917,30]
[310967329,1704836031182,-909.79,0.00041917,30]
[310967330,1704836031195,-1129.19,0.00041917,30]
[310967331,1704836031204,-500.0,0.00041917,30]
[310967332,1704836031214,-923.88,0.00041917,30]
[310967333,1704836031224,-611.47,0.00041917,30]
[310967334,1704836031233,-3103.78,0.00041917,30]
[310967335,1704836031242,-500.0,0.00041917,30]
[310967336,1704836031252,-500.0,0.00041917,30]
[310967337,1704836031262,-500.0,0.00041917,30]
[310967338,1704836031271,-500.0,0.00041917,30]
[310967339,1704836031280,-3251.04,0.00041917,30]
[310967340,1704836031290,-500.0,0.00041917,30]
[310967341,1704836031300,-740.01,0.00041917,30]
[310967342,1704836031310,-546.86,0.00041917,30]
[310967343,1704836031320,-1698.45,0.00041917,30]
[310967344,1704836031330,-500.0,0.00041917,30]
[310967345,1704836031339,-500.0,0.00041917,30]
[310967346,1704836031349,-500.0,0.00041917,30]
[310967347,1704836031358,-500.0,0.00041917,30]
[310967348,1704836031368,-1031.59,0.00041917,30]
[310967349,1704836031378,-739.45,0.00041917,30]
[310967350,1704836031388,-500.0,0.00041917,30]
[310967351,1704836031397,-1341.58,0.00041917,30]
[310967352,1704836031408,-500.0,0.00041917,30]
[310967353,1704836031419,-500.0,0.00041917,30]
[310967354,1704836031429,-579.92,0.00041917,30]
[310967355,1704836031442,-962.12,0.00041917,30]
[310967356,1704836031451,-550.03,0.00041917,30]
[310967357,1704836031460,-12867.13,0.00041917,30]
[310967358,1704836031469,-897.67,0.00041917,30]
[310967359,1704836031478,-864.6,0.00041917,30]
[310967360,1704836031489,-550.26,0.00041917,30]
[310967361,1704836031498,-1997.12,0.00041917,30]
[310967363,1704836031728,-526.62,0.00041917,30]
[310967364,1704836031739,-998.19,0.00041917,30]
[310967365,1704836031749,-1195.83,0.00041917,30]
[310967366,1704836031759,-48899.91,0.00041917,30]
[310967367,1704836031768,-500.0,0.00041917,30]
[310967368,1704836031777,-500.0,0.00041917,30]
[310967369,1704836031786,-654.66,0.00041917,30]
[310967370,1704836031796,-2469.86,0.00041917,30]
[310967371,1704836031805,-808.31,0.00041917,30]
[310967372,1704836031814,-673.33,0.00041917,30]
[310967373,1704836031823,-500.0,0.00041917,30]
[310967374,1704836031832,-500.0,0.00041917,30]
[310967375,1704836031843,-2521.48,0.00041917,30]
[310967376,1704836031852,-2801.21,0.00041917,30]
[310967377,1704836031861,-626.68,0.00041917,30]
[310967378,1704836031871,-886.46,0.00041917,30]
[310967379,1704836031880,-1955.03,0.00041917,30]
[310967380,1704836031890,-767.91,0.00041917,30]
[310967381,1704836031899,-500.0,0.00041917,30]
[310967382,1704836031909,-2192.68,0.00041917,30]
[310967383,1704836031919,-616.65452068,0.00041917,30]
[310967384,1704836031929,-1009.87,0.00041917,7]
[310967385,1704836031939,-991.57,0.00041917,30]
[310967386,1704836031950,-500.0,0.00041917,30]
[310967387,1704836031959,-500.0,0.00041917,30]
[310967388,1704836031970,-828.51,0.00041917,30]
[310967389,1704836031980,-500.0,0.00041917,30]
[310967390,1704836031990,-2108.88,0.00041917,30]
[310967391,1704836032000,-1931.34,0.00041917,30]
[310967392,1704836032011,-3347.6,0.00041917,30]
[310967393,1704836032021,-14790.64,0.00041917,30]
[310967394,1704836032031,-423.27958691,0.00041917,30]
[310967395,1704836032041,-822.65,0.00041917,30]
[310967396,1704836032050,-1430.23,0.00041917,30]
[310967397,1704836032060,-5678.13,0.00041917,30]
[310967398,1704836032072,-610.39,0.00041917,30]
[310967399,1704836032082,-1617.86,0.00041917,30]
[310967400,1704836032092,-1087.77,0.00041917,30]
[310967401,1704836032102,-2799.84,0.00041917,30]
[310967402,1704836032111,-733.18,0.00041917,30]
[310967403,1704836032122,-500.0,0.00041917,30]
[310967404,1704836032131,-500.0,0.00041917,30]
[310967405,1704836032142,-1593.04,0.00041917,30]
[310967406,1704836032152,-500.0,0.00041917,30]
[310967407,1704836032162,-1520.5,0.00041917,30]
[310967408,1704836032172,-502.92,0.00041917,30]
[310967409,1704836032182,-1804.05,0.00041917,30]
[310967410,1704836032192,-539.66,0.00041917,30]
[310967411,1704836032202,-857.84,0.00041917,30]
[310967412,1704836032212,-1689.37,0.00041917,30]
[310967413,1704836032222,-1039.06,0.00041917,30]
[310967414,1704836032233,-4621.51,0.00041917,30]
[310967415,1704836032242,-500.0,0.00041917,30]
[310967416,1704836032252,-704.14,0.00041917,30]
[310967417,1704836032262,-500.0,0.00041917,30]
[310967418,1704836032272,-4643.53,0.00041917,30]
[310967419,1704836032282,-1420.75,0.00041917,30]
[310967420,1704836032292,-500.0,0.00041917,30]
[310967421,1704836032302,-571.44,0.00041917,30]
[310967422,1704836032311,-3385.64,0.00041917,30]
[310967423,1704836032321,-500.0,0.00041917,30]
[310967424,1704836032330,-2540.83,0.00041917,30]
[310967425,1704836032340,-965.39,0.00041917,30]
[310967426,1704836032349,-500.0,0.00041917,30]
[310967427,1704836032359,-791.0,0.00041917,30]
[310967428,1704836032369,-2213.16,0.00041917,30]
[310967429,1704836032379,-500.0,0.00041917,30]
[310967430,1704836032388,-846.61,0.00041917,30]
[310967431,1704836032399,-2650.5,0.00041917,30]
[310967432,1704836032408,-786.95,0.00041917,30]
[310967433,1704836032418,-500.0,0.00041917,30]
[310967434,1704836032427,-500.0,0.00041917,30]
[310967435,1704836032437,-1349.94,0.00041917,30]
[310967436,1704836032448,-500.0,0.00041917,30]
[310967437,1704836032458,-832.69,0.00041917,30]
[310967438,1704836032467,-2311.91,0.00041917,30]
[310967439,1704836032478,-1396.93,0.00041917,30]
[310967440,1704836032488,-500.0,0.00041917,30]
[310967441,1704836032498,-14690.46,0.00041917,30]
[310967442,1704836032507,-500.0,0.00041917,30]
[310967443,1704836032517,-2102.03,0.00041917,30]
[310967444,1704836032527,-500.0,0.00041917,30]
[310967445,1704836032537,-500.0,0.00041917,30]
[310967446,1704836032548,-6568.56,0.00041917,30]
[310967447,1704836032558,-3431.96,0.00041917,30]
[310967448,1704836032568,-2567.2,0.00041917,30]
[310967449,1704836032578,-534.6,0.00041917,30]
[310967450,1704836032587,-4057.32,0.00041917,30]
[310967451,1704836032597,-1036.03,0.00041917,30]
[310967452,1704836032606,-5465.29,0.00041917,30]
[310967453,1704836032616,-1046.98,0.00041917,30]
[310967454,1704836032627,-707.65,0.00041917,30]
[310967455,1704836032636,-3677.68,0.00041917,30]
[310967456,1704836032646,-558.03,0.00041917,30]
[310967457,1704836032656,-503.66,0.00041917,30]
[310967458,1704836032666,-2846.34,0.00041917,30]
[310967459,1704836032676,-796.49,0.00041917,30]
[310967460,1704836032685,-500.0,0.00041917,30]
[310967461,1704836032696,-2255.93,0.00041917,30]
[310967462,1704836032706,-2496.21,0.00041917,30]
[310967463,1704836032715,-2311.14,0.00041917,30]
[310967464,1704836032724,-3376.56,0.00041917,30]
[310967465,1704836032734,-692.76,0.00041917,30]
[310967466,1704836032743,-1358.66,0.00041917,30]
[310967467,1704836032753,-769.11,0.00041917,30]
[310967468,1704836032763,-1845.73,0.00041917,30]
[310967469,1704836032773,-500.0,0.00041917,30]
[310967470,1704836032783,-13108.96,0.00041917,30]
[310967471,1704836032793,-500.0,0.00041917,30]
[310967472,1704836032803,-9899.51,0.00041917,30]
[310967473,1704836032813,-1387.57,0.00041917,30]
[310967474,1704836032822,-10579.54,0.00041917,30]
[310967475,1704836032832,-1436.88,0.00041917,30]
[310967476,1704836032841,-1636.08,0.00041917,30]
[310967477,1704836032852,-500.0,0.00041917,30]
[310967478,1704836032868,-780.53,0.00041917,30]
[310967479,1704836032878,-1868.59,0.00041917,30]
[310967480,1704836032888,-583.25,0.00041917,30]
[310967481,1704836032897,-7300.87,0.00041917,30]
[310967482,1704836032907,-500.0,0.00041917,30]
[310967483,1704836032916,-1200.98,0.00041917,30]
[310967484,1704836032925,-1010.7,0.00041917,30]
[310967485,1704836032935,-2024.47,0.00041917,30]
[310967486,1704836032948,-3584.51,0.00041917,30]
[310967487,1704836032958,-829.24,0.00041917,30]
[310967489,1704836032968,-1022.82,0.00041917,30]
[310967490,1704836032977,-663.65,0.00041917,30]
[310967491,1704836032987,-535.10417105,0.00041917,30]
[310967492,1704836032996,-1276.96,0.00041917,30]
[310967493,1704836033006,-719.05,0.00041917,30]
[310967494,1704836033016,-1279.36,0.00041917,30]
[310967495,1704836033026,-500.0,0.00041917,30]
[310967496,1704836033036,-1955.18,0.00041917,30]
[310967497,1704836033045,-5923.58,0.00041917,30]
[310967498,1704836033055,-1076.29,0.00041917,30]
[310967499,1704836033065,-3773.23,0.00041917,30]
[310967500,1704836033074,-3976.14,0.00041917,30]
[310967501,1704836033084,-2969.33,0.00041917,30]
[310967502,1704836033093,-1442.56,0.00041917,30]
[310967503,1704836033103,-1085.14,0.00041917,30]
[310967504,1704836033113,-546.98,0.00041917,30]
[310967505,1704836033122,-1958.44,0.00041917,30]
[310967506,1704836033132,-500.0,0.00041917,30]
[310967507,1704836033142,-6261.12,0.00041917,30]
[310967508,1704836033152,-500.0,0.00041917,30]
[310967509,1704836033162,-645.66,0.00041917,30]
[310967510,1704836033172,-1066.92,0.00041917,30]
[310967511,1704836033181,-894.85,0.00041917,30]
[310967512,1704836033192,-2874.62,0.00041917,30]
[310967513,1704836033202,-3862.71,0.00041917,30]
[310967514,1704836033212,-1757.07,0.00041917,30]
[310967515,1704836033222,-500.0,0.00041917,30]
[310967516,1704836033231,-4543.27,0.00041917,30]
[310967517,1704836033240,-1341.14,0.00041917,30]
[310967518,1704836033266,-577.82,0.00041917,30]
[310967519,1704836033285,-500.0,0.00041917,30]
[310967520,1704836033305,-500.0,0.00041917,30]
[310967521,1704836033324,-901.82,0.00041917,30]
[310967522,1704836033342,-500.0,0.00041917,30]
[310967523,1704836033362,-3856.08,0.00041917,30]
[310967524,1704836033384,-1349.44,0.00041917,30]
[310967525,1704836033404,-1130.33,0.00041917,30]
[310967526,1704836033424,-588.78,0.00041917,30]
[310967527,1704836033447,-1641.57,0.00041917,30]
[310967528,1704836033464,-1586.06,0.00041917,30]
[310967529,1704836033482,-760.68,0.00041917,30]
[310967530,1704836033495,-857.88,0.00041917,30]
[310967531,1704836033511,-3762.07,0.00041917,30]
[310967532,1704836033529,-500.0,0.00041917,30]
[310967533,1704836033544,-536.72,0.00041917,30]
[310967534,1704836033561,-550.1,0.00041917,30]
[310967535,1704836033577,-4420.44,0.00041917,30]
[310967536,1704836033593,-4355.86,0.00041917,30]
[310967537,1704836033609,-1511.36,0.00041917,30]
[310967538,1704836033625,-500.0,0.00041917,30]
[310967539,1704836033641,-1161.02,0.00041917,30]
[310967540,1704836033656,-10725.89,0.00041917,30]
[310967541,1704836033674,-1044.46,0.00041917,30]
[310967542,1704836033692,-929.83,0.00041917,30]
[310967543,1704836033710,-500.0,0.00041917,30]
[310967544,1704836033728,-867.5,0.00041917,30]
[310967545,1704836033747,-720.34,0.00041917,30]
[310967546,1704836033763,-6977.93,0.00041917,30]
[310967547,1704836033781,-500.0,0.00041917,30]
[310967548,1704836033798,-964.23,0.00041917,30]
[310967549,1704836033815,-1586.56,0.00041917,30]
[310967550,1704836033830,-3056.94,0.00041917,30]
[310967551,1704836033846,-500.0,0.00041917,7]
[310967552,1704836033874,-500.0,0.00041917,30]
[310967553,1704836033890,-1370.1,0.00041917,30]
[310967554,1704836033905,-3469.89,0.00041917,30]
[310967555,1704836033922,-500.0,0.00041917,30]
[310967556,1704836033938,-648.93,0.00041917,30]
[310967557,1704836033956,-500.0,0.00041917,30]
[310967558,1704836033973,-994.23,0.00041917,30]
[310967559,1704836033987,-500.0,0.00041917,30]
[310967560,1704836034002,-500.0,0.00041917,30]
[310967561,1704836034018,-3974.35,0.00041917,30]
[310967562,1704836034034,-1208.62,0.00041917,30]
[310967563,1704836034050,-575.24,0.00041917,30]
[310967564,1704836034066,-500.0,0.00041917,30]
[310967565,1704836034080,-500.0,0.00041917,30]
[310967566,1704836034097,-840.42,0.00041917,30]
[310967567,1704836034112,-442.62,0.00041917,30]
[310967568,1704836034127,-500.0,0.00041917,30]
[310967569,1704836034142,-20052.88,0.00041917,30]
[310967570,1704836034158,-1154.2,0.00041917,30]
[310967571,1704836034173,-3280.13,0.00041917,30]
[310967572,1704836034188,-1336.18,0.00041917,30]
[310967573,1704836034205,-500.0,0.00041917,30]
[310967574,1704836034220,-3059.66,0.00041917,30]
[310967575,1704836034234,-808.78,0.00041917,30]
[310967576,1704836034250,-5796.52,0.00041917,30]
[310967577,1704836034266,-595.48,0.00041917,30]
[310967578,1704836034282,-772.79,0.00041917,30]
[310967579,1704836034302,-1773.57,0.00041917,30]
[310967580,1704836034317,-500.0,0.00041917,30]
[310967581,1704836034331,-1436.73,0.00041917,30]
[310967582,1704836034346,-1274.83,0.00041917,30]
[310967583,1704836034361,-823.79,0.00041917,30]
[310967584,1704836034376,-500.0,0.00041917,30]
[310967585,1704836034391,-767.78,0.00041917,30]
[310967586,1704836034405,-500.0,0.00041917,30]
[310967587,1704836034420,-500.0,0.00041917,30]
[310967588,1704836034436,-1764.13,0.00041917,30]
[310967589,1704836034453,-924.78,0.00041917,30]
[310967590,1704836034468,-1944.68,0.00041917,30]
[310967591,1704836034483,-10402.25,0.00041917,30]
[310967592,1704836034498,-4303.2,0.00041917,30]
[310967593,1704836034514,-4288.57,0.00041917,30]
[310967594,1704836034528,-7059.7,0.00041917,30]
[310967595,1704836034543,-6327.7,0.00041917,30]
[310967596,1704836034557,-1629.67,0.00041917,30]
[310967597,1704836034572,-2082.36,0.00041917,30]
[310967598,1704836034587,-699.1,0.00041917,30]
[310967599,1704836034603,-500.0,0.00041917,30]
[310967600,1704836034619,-173867.65856726,0.0004193,2]
[310967601,1704836034636,-250343.82769378,0.0004193,2]
[310967602,1704836034652,-1000.0,0.00041969,15]
[310967603,1704836034667,-500.0,0.00041987,33]
[310967604,1704836034684,-200.0,0.00041987,21]
[310967605,1704836034702,-800.0,0.00041998,45]
[310967606,1704836034717,-100000.0,0.00042,3]
[310967607,1704836034750,-100000.0,0.00042,3]
[310967608,1704836034773,-22571.79,0.00042,30]
[310967609,1704836034795,-1000.0,0.00042,120]
[310967610,1704836034814,-200.0,0.00042,14]
[310967611,1704836034834,-10000.0,0.00042,10]
[310967612,1704836034853,-10000.0,0.00042,12]
[310967613,1704836034872,-24093.76621111,0.00042,2]
[310967614,1704836034890,-500.0,0.00042,30]
[310967615,1704836034907,-1000.0,0.00042,14]
[310967616,1704836034918,-1002.0,0.00042,14]
[310967617,1704836034929,-1715.46241,0.00042,120]
[310967618,1704836034938,-24025.0,0.00042,10]
[310967619,1704836034950,-600.0,0.00042,43]
[310967620,1704836034959,-12880.9542228,0.00042,3]
[310967621,1704836034968,-10342.9660512,0.00042,120]
[310967622,1704836034978,-1000.0,0.00042,10]
[310967623,1704836034987,-19111.17880258,0.00042,2]
[310967624,1704836034996,-9799.1100182,0.00042,2]
[310967625,1704836035006,-207.61919477,0.00042,10]
[310967626,1704836035015,-34276.05862357,0.00042,30]
[310967627,1704836035025,-2000.0,0.00042,2]
[310967628,1704836035034,-500.0,0.00042,30]
[310967629,1704836035043,-500.0,0.00042,30]
[310967630,1704836035052,-500.0,0.00042,30]
[310967631,1704836035062,-519.07,0.00042,30]
[310967632,1704836035071,-500.0,0.00042,30]
[310967633,1704836035080,-500.0,0.00042,30]
[310967634,1704836035089,-500.0,0.00042,30]
[310967635,1704836035098,-1003.07,0.00042,6]
[310967636,1704836035107,-500.0,0.00042,30]
[310967637,1704836035117,-599.12,0.00042,30]
[310967638,1704836035126,-500.0,0.00042,30]
[310967639,1704836035136,-870.95,0.00042,30]
[310967640,1704836035145,-774.16,0.00042,30]
[310967641,1704836035154,-500.0,0.00042,30]
[310967642,1704836035164,-500.0,0.00042,2]
[310967643,1704836035174,-628.44,0.00042,30]
[310967644,1704836035183,-500.0,0.00042,30]
[310967645,1704836035193,-500.0,0.00042,30]
[310967646,1704836035206,-583.93,0.00042,30]
[310967647,1704836035215,-509.28822757,0.00042,30]
[310967648,1704836035225,-664.43,0.00042,30]
[310967649,1704836035234,-642.11,0.00042,30]
[310967650,1704836035243,-1006.44,0.00042,30]
[310967651,1704836035253,-785.15,0.00042,30]
[310967652,1704836035263,-500.0,0.00042,30]
[310967653,1704836035272,-500.0,0.00042,30]
[310967654,1704836035281,-500.0,0.00042,30]
[310967655,1704836035291,-647.85,0.00042,30]
[310967656,1704836035301,-1176.3,0.00042,30]
[310967657,1704836035311,-892.9,0.00042,30]
[310967658,1704836035320,-875.0,0.00042,30]
[310967659,1704836035329,-273.29084088,0.00042,30]
[310967660,1704836035339,-500.0,0.00042,30]
[310967661,1704836035348,-500.0,0.00042,30]
[310967662,1704836035357,-924.33,0.00042,30]
[310967663,1704836035367,-552.38,0.00042,30]
[310967664,1704836035378,-1079.22,0.00042,30]
[310967665,1704836035388,-1021.0,0.00042,30]
[310967666,1704836035397,-500.0,0.00042,30]
[310967667,1704836035409,-500.0,0.00042,30]
[310967668,1704836035418,-500.0,0.00042,30]
[310967669,1704836035427,-500.0,0.00042,30]
[310967670,1704836036075,-749.02,0.00042,30]
[310967671,1704836036100,-500.0,0.00042,30]
[310967672,1704836036120,-500.0,0.00042,30]
[310967673,1704836036145,-507.33,0.00042,30]
[310967674,1704836036164,-500.0,0.00042,30]
[310967675,1704836036183,-500.0,0.00042,30]
[310967676,1704836036193,-500.0,0.00042,30]